bitfinex/quotes_SOLUSD_20241117
["timestamp","ask_amount","ask_price","bid_price","bid_amount"]
[1731874253150,4.2245,236.71,236.59,10.28706699]
[1731874253347,4.2245,236.71,236.65,10.28706699]
[1731874253646,0.09367462,236.7,236.65,10.28706699]
[1731874254140,4.2245,236.71,236.65,10.28706699]
[1731874254348,24.027864,236.7,236.65,10.28706699]
[1731874254514,0.09367462,236.69,236.65,10.28706699]
[1731874254710,0.21916462,236.67,236.65,10.28706699]
[1731874256845,0.21916462,236.67,236.63,10.28706699]
[1731874257340,4.44456462,236.67,236.63,10.28706699]
[1731874257537,0.21916462,236.67,236.63,10.28706699]
[1731874258322,0.21916462,236.65,236.57,14.7944]
[1731874258518,0.21916462,236.65,236.59,10.28706699]
[1731874259852,0.21916462,236.65,236.61,10.28706699]
[1731874261029,23.902374,236.68,236.63,10.28706699]
[1731874261229,4.2246,236.71,236.67,10.28706699]
[1731874262153,4.31787462,236.73,236.67,10.28706699]
[1731874262353,0.09367462,236.71,236.67,10.28706699]
[1731874263633,0.09367462,236.71,236.65,10.28706699]
[1731874264331,4.2238,236.76,236.69,10.28706699]
[1731874264534,4.2234,236.78,236.73,10.28706699]
[1731874264948,4.223,236.8,236.73,10.28706699]
[1731874266251,4.223,236.8,236.73,14.51116699]
[1731874266556,0.09367462,236.79,236.73,14.51116699]
[1731874266754,0.21916462,236.79,236.73,14.51116699]
[1731874268236,0.21916462,236.79,236.75,10.28706699]
[1731874268640,0.21916462,236.79,236.71,10.5612]
[1731874268844,0.21916462,236.79,236.74,10.28706699]
[1731874269738,0.12549,236.78,236.71,10.5612]
[1731874270030,4.2232,236.79,236.73,10.28706699]
[1731874270231,0.25098,236.78,236.73,10.28706699]
[1731874271457,0.09367462,236.77,236.73,10.28706699]
[1731874273451,8.5041629,236.81,236.75,10.28706699]
[1731874273655,8.5041629,236.81,236.77,10.28706699]
[1731874274240,8.5041629,236.81,236.75,10.28706699]
[1731874275257,8.5041629,236.81,236.77,10.28706699]
[1731874278564,0.09367462,236.8,236.75,10.28706699]
[1731874278759,0.34465462,236.8,236.75,10.28706699]
[1731874280366,4.2231,236.79,236.75,10.28706699]
[1731874280871,4.2231,236.79,236.73,10.28706699]
[1731874281575,0.25098,236.78,236.73,10.28706699]
[1731874281738,0.09367462,236.77,236.71,10.5614]
[1731874282068,0.09367462,236.77,236.72,10.28706699]
[1731874282255,4.31717462,236.77,236.71,10.5614]
[1731874282463,4.31717462,236.77,236.72,10.28706699]
[1731874282849,0.25098,236.76,236.72,10.28706699]
[1731874283849,10.5549,236.86,236.74,10.28706699]
[1731874284068,0.25098,236.8,236.76,10.28706699]
[1731874284374,0.09367462,236.79,236.76,10.28706699]
[1731874285045,0.09367462,236.79,236.71,14.7859]
[1731874285046,0.09367462,236.79,236.73,10.28706699]
[1731874285273,0.09367462,236.79,236.75,10.28706699]
[1731874286344,4.31687462,236.79,236.73,10.28706699]
[1731874286645,4.31687462,236.79,236.67,21.1264]
[1731874286646,0.09367462,236.77,236.67,14.7882]
[1731874286962,24.12153862,236.75,236.67,20.85016699]
[1731874287142,24.12153862,236.75,236.67,10.5631]
[1731874287338,0.12549,236.72,236.67,10.5631]
[1731874288338,0.12549,236.72,236.67,10.0631]
[1731874290359,4.34989,236.72,236.67,10.0631]
[1731874290967,0.21916462,236.71,236.66,10.28706699]
[1731874291349,0.21916462,236.69,236.66,10.28706699]
[1731874291551,0.21916462,236.69,236.64,10.28706699]
[1731874292658,0.21916462,236.69,236.63,4.2259]
[1731874293453,10.28706699,236.68,236.63,4.2259]
[1731874293644,10.28706699,236.68,236.62,10.5651]
[1731874293844,0.34465462,236.65,236.58,10.5672]
[1731874294096,10.28706699,236.64,236.58,10.5672]
[1731874294252,0.34465462,236.63,236.58,10.5672]
[1731874296880,0.25098,236.58,236.52,10.5695]
[1731874297168,0.25098,236.58,236.5,10.28706699]
[1731874297370,10.28706699,236.59,236.52,10.28706699]
[1731874297684,0.25098,236.6,236.52,10.28706699]
[1731874297964,0.09367462,236.59,236.52,10.28706699]
[1731874298673,0.09367462,236.59,236.52,14.51496699]
[1731874299466,0.09367462,236.57,236.52,10.28706699]
[1731874299672,0.25098,236.58,236.52,10.28706699]
[1731874301482,4.32057462,236.58,236.52,10.28706699]
[1731874302586,20.3045,236.7,236.57,10.28706699]
[1731874302752,10.28706699,236.71,236.62,10.28706699]
[1731874302955,4.2245,236.72,236.64,10.28706699]
[1731874303175,0.09367462,236.71,236.64,10.28706699]
[1731874303477,4.2245,236.72,236.66,10.28706699]
[1731874304354,0.09367462,236.71,236.66,10.28706699]
[1731874304755,4.2245,236.72,236.66,10.28706699]
[1731874305257,0.09367462,236.69,236.63,10.565]
[1731874305458,4.2245,236.72,236.64,10.28706699]
[1731874305852,0.34465462,236.71,236.64,10.28706699]
[1731874307459,0.34465462,236.71,236.64,14.51276699]
[1731874307959,0.12549,236.69,236.64,10.28706699]
[1731874308162,10.28706699,236.73,236.64,14.51276699]
[1731874308467,4.2229,236.8,236.71,10.28706699]
[1731874308657,4.2229,236.8,236.64,25.07726699]
[1731874308658,4.2229,236.8,236.73,10.28706699]
[1731874309174,0.09367462,236.79,236.73,9.78706699]
[1731874309677,4.2229,236.8,236.73,9.28706699]
[1731874309854,8.5041629,236.81,236.75,10.28706699]
[1731874310272,8.5041629,236.81,236.7,4.2247]
[1731874310273,8.5041629,236.81,236.77,10.28706699]
[1731874312577,4.2219,236.86,236.79,10.28706699]
[1731874312763,10.28706699,236.89,236.81,10.28706699]
[1731874312764,4.2216,236.88,236.81,10.28706699]
[1731874313288,4.2207,236.93,236.85,10.28706699]
[1731874313466,4.2207,236.93,236.87,10.28706699]
[1731874313661,10.5486,237.0,236.89,10.28706699]
[1731874313662,10.287067,236.99,236.89,10.28706699]
[1731874313985,0.09367462,236.97,236.91,10.28706699]
[1731874314165,4.2197,236.98,236.91,10.28706699]
[1731874315058,10.28706699,236.99,236.91,10.28706699]
[1731874315279,4.2188,237.03,236.91,10.28706699]
[1731874315585,10.28706699,237.01,236.93,10.28706699]
[1731874315769,10.28706699,237.01,236.91,10.28706699]
[1731874315961,4.2188,237.03,236.91,10.28706699]
[1731874315962,0.09367462,236.98,236.91,10.28706699]
[1731874316161,0.09367462,236.96,236.85,20.9263]
[1731874316369,10.38074161,236.96,236.88,10.28706699]
[1731874316766,0.09367462,236.94,236.88,10.28706699]
[1731874317182,10.28706699,236.93,236.85,16.7043]
[1731874317480,0.09367462,236.94,236.83,10.28706699]
[1731874317481,24.12153862,236.9,236.83,10.28706699]
[1731874317684,24.12153862,236.9,236.81,10.28706699]
[1731874317886,24.12153862,236.9,236.83,10.28706699]
[1731874318593,0.12549,236.87,236.83,10.28706699]
[1731874320685,0.12549,236.87,236.8,16.7063]
[1731874320993,0.12549,236.87,236.83,10.28706699]
[1731874321471,4.34719,236.87,236.83,10.28706699]
[1731874321983,0.21916462,236.84,236.79,10.28706699]
[1731874322292,0.12549,236.83,236.79,10.28706699]
[1731874322600,0.25098,236.83,236.77,10.28706699]
[1731874323281,0.25098,236.83,236.68,0.1]
[1731874323282,0.09367462,236.78,236.71,10.28706699]
[1731874324706,0.21916462,236.75,236.69,10.28706699]
[1731874324874,0.21916462,236.73,236.67,10.28706699]
[1731874325074,0.12549,236.72,236.67,10.28706699]
[1731874325880,0.21916462,236.69,236.65,10.28706699]
[1731874326182,0.12549,236.68,236.65,10.28706699]
[1731874326492,24.12153862,236.72,236.65,10.28706699]
[1731874326792,0.34465462,236.7,236.65,10.28706699]
[1731874326995,24.12153862,236.68,236.61,10.28706699]
[1731874327371,0.09367462,236.66,236.61,10.28706699]
[1731874327573,0.25098,236.65,236.61,10.28706699]
[1731874328105,4.2257,236.65,236.61,10.28706699]
[1731874328780,0.34465462,236.64,236.58,10.28706699]
[1731874328971,24.12153862,236.62,236.54,20.85586699]
[1731874329170,24.12153862,236.62,236.54,10.28706699]
[1731874330175,0.25098,236.6,236.54,10.28706699]
[1731874330585,0.09367462,236.59,236.54,10.28706699]
[1731874330776,0.09367462,236.59,236.52,10.28706699]
[1731874331388,34.40860561,236.57,236.48,10.28706699]
[1731874331574,24.12153862,236.57,236.52,10.28706699]
[1731874331889,24.12153862,236.57,236.5,10.28706699]
[1731874332296,40.60122398,236.57,236.49,16.47968536]
[1731874332687,0.34465462,236.55,236.49,16.47968536]
[1731874333797,4.57215462,236.55,236.49,16.47968536]
[1731874334500,0.34465462,236.53,236.49,16.47968536]
[1731874335084,0.34465462,236.53,236.47,16.47968536]
[1731874335884,4.57255462,236.53,236.47,16.47968536]
[1731874338179,0.25098,236.5,236.43,16.47968536]
[1731874338899,4.2279,236.53,236.49,16.47968536]
[1731874339101,0.25098,236.52,236.49,16.47968536]
[1731874340298,16.47968536,236.58,236.51,16.47968536]
[1731874340487,24.027864,236.57,236.51,16.47968536]
[1731874340693,0.09367462,236.56,236.5,16.47968536]
[1731874342609,0.25098,236.54,236.5,16.47968536]
[1731874342810,0.25098,236.54,236.51,16.47968536]
[1731874343211,16.47968536,236.58,236.44,14.8029]
[1731874343212,162.3,236.68,236.52,16.47968536]
[1731874343513,20.70488536,236.67,236.6,16.47968536]
[1731874343807,16.47968536,236.65,236.56,16.47968536]
[1731874344015,16.47968536,236.63,236.56,16.47968536]
[1731874344390,4.2261,236.62,236.56,16.47968536]
[1731874344810,16.47968536,236.59,236.52,16.47968536]
[1731874345029,0.25098,236.57,236.52,16.47968536]
[1731874345486,0.09367462,236.56,236.5,16.47968536]
[1731874345685,16.73066536,236.55,236.47,20.70848536]
[1731874345883,16.73066536,236.55,236.47,16.47968536]
[1731874345884,0.25098,236.53,236.47,16.47968536]
[1731874346107,0.25098,236.53,236.47,20.70848536]
[1731874346492,0.34465462,236.54,236.47,20.70848536]
[1731874347598,4.57225462,236.54,236.47,20.70848536]
[1731874347911,4.57225462,236.54,236.47,16.47968536]
[1731874350213,0.34465462,236.54,236.49,16.47968536]
[1731874350908,0.34465462,236.54,236.48,16.47968536]
[1731874351108,4.47868,236.54,236.48,16.47968536]
[1731874352619,0.25098,236.54,236.48,16.47968536]
[1731874353699,0.09367462,236.53,236.48,16.47968536]
[1731874354422,28.255564,236.54,236.41,20.87901128]
[1731874354423,10.30461128,236.49,236.41,20.87901128]
[1731874354596,10.30461128,236.49,236.41,25.10891128]
[1731874354799,14.53321128,236.49,236.41,25.10891128]
[1731874355128,4.47878,236.53,236.46,10.30461128]
[1731874355299,0.25098,236.51,236.46,10.30461128]
[1731874356530,0.25098,236.51,236.44,14.53391128]
[1731874357204,4.47918,236.51,236.44,14.53391128]
[1731874358527,0.09367462,236.48,236.44,10.30461128]
[1731874358822,4.2285,236.49,236.42,10.30461128]
[1731874359422,0.25098,236.49,236.42,10.30461128]
[1731874360404,0.25098,236.49,236.41,14.8043]
[1731874360405,0.09367462,236.48,236.41,14.8043]
[1731874360702,0.09367462,236.48,236.37,16.3599]
[1731874360703,10.30461128,236.44,236.37,16.3599]
[1731874360923,10.30461128,236.44,236.36,20.88141128]
[1731874361102,0.25098,236.48,236.41,10.30461128]
[1731874362227,4.47968,236.48,236.41,10.30461128]
[1731874363430,10.30461128,236.47,236.39,10.30461128]
[1731874364828,0.12549,236.46,236.39,10.30461128]
[1731874365123,14.53351128,236.47,236.39,10.30461128]
[1731874365332,4.2289,236.47,236.41,10.30461128]
[1731874366608,0.25098,236.46,236.39,14.53471128]
[1731874367318,4.48008,236.46,236.39,14.53471128]
[1731874369128,4.35459,236.46,236.39,14.53471128]
[1731874370513,23.99604862,236.45,236.39,10.30461128]
[1731874370833,0.12549,236.43,236.37,20.88121128]
[1731874371412,0.12549,236.43,236.35,15.00020328]
[1731874371808,10.30461128,236.41,236.35,0.464792]
[1731874372015,10.30461128,236.39,236.35,0.464792]
[1731874372414,0.25098,236.4,236.35,0.464792]
[1731874372810,14.53481128,236.39,236.35,0.464792]
[1731874374337,0.25098,236.36,236.35,0.464792]
[1731874374517,0.34465462,236.36,236.35,0.464792]
[1731874374914,10.30461128,236.4,236.35,0.464792]
[1731874375110,0.09367462,236.38,236.35,0.464792]
[1731874375317,10.3982859,236.36,236.35,0.464792]
[1731874375526,0.34465462,236.36,236.35,0.464792]
[1731874376314,4.57545462,236.36,236.35,0.464792]
[1731874377528,14.8800659,236.36,236.35,0.464792]
[1731874377938,38.6569499,236.36,236.35,0.464792]
[1731874378528,55.1078499,236.36,236.35,0.464792]
[1731874379823,44.80323862,236.36,236.35,0.464792]
[1731874380151,0.34465462,236.36,236.35,0.464792]
[1731874382845,4.2298,236.42,236.35,15.00030328]
[1731874383029,10.30461128,236.47,236.39,10.30461128]
[1731874383538,6.4793,236.5,236.35,15.273192]
[1731874383539,4.2284,236.5,236.43,10.30461128]
[1731874384044,10.30461128,236.49,236.41,10.30461128]
[1731874384426,4.32227462,236.48,236.41,10.30461128]
[1731874384838,0.25098,236.47,236.41,10.30461128]
[1731874385043,0.12549,236.45,236.39,14.53481128]
[1731874385742,0.12549,236.45,236.41,10.30461128]
[1731874385942,25.45981128,236.53,236.43,10.30461128]
[1731874386118,25.45981128,236.53,236.39,14.8059]
[1731874386119,4.2277,236.54,236.48,10.30461128]
[1731874386317,0.09367462,236.53,236.48,10.30461128]
[1731874386523,4.2277,236.54,236.48,10.30461128]
[1731874387128,10.30461128,236.51,236.44,10.30461128]
[1731874387330,0.09367462,236.5,236.42,10.30461128]
[1731874387538,0.09367462,236.48,236.42,10.30461128]
[1731874387742,24.12153862,236.48,236.4,10.30461128]
[1731874388222,0.09367462,236.46,236.4,10.30461128]
[1731874388529,0.25098,236.43,236.36,10.30461128]
[1731874389943,10.30461128,236.47,236.4,10.30461128]
[1731874390152,0.12549,236.5,236.44,10.30461128]
[1731874390324,10.30461128,236.54,236.46,10.30461128]
[1731874390526,14.53181128,236.56,236.48,10.30461128]
[1731874390948,0.09367462,236.51,236.41,6.2076]
[1731874391324,4.2283,236.5,236.43,10.30461128]
[1731874391527,4.2283,236.5,236.36,21.1541]
[1731874391528,0.09367462,236.43,236.33,14.8095]
[1731874391732,0.12549,236.47,236.41,10.30461128]
[1731874391943,0.12549,236.49,236.41,10.30461128]
[1731874392155,4.2283,236.5,236.45,10.30461128]
[1731874392330,0.12549,236.49,236.45,10.30461128]
[1731874392755,0.25098,236.49,236.45,10.30461128]
[1731874394844,4.47948,236.49,236.45,10.30461128]
[1731874395352,34.3006599,236.48,236.39,10.30461128]
[1731874395533,0.21916462,236.46,236.39,10.30461128]
[1731874395857,0.09367462,236.44,236.37,10.30461128]
[1731874396252,0.12549,236.43,236.37,10.30461128]
[1731874396842,0.1,236.5,236.37,10.30461128]
[1731874396843,10.30461128,236.5,236.41,10.30461128]
[1731874397044,16.0551,236.53,236.43,10.30461128]
[1731874397045,0.25098,236.49,236.43,10.30461128]
[1731874397244,0.25098,236.51,236.45,10.30461128]
[1731874397451,0.25098,236.47,236.39,10.30461128]
[1731874397939,4.2292,236.45,236.39,10.30461128]
[1731874398256,0.12549,236.4,236.35,0.464792]
[1731874398558,34.4261499,236.36,236.35,0.464792]
[1731874398861,54.4261499,236.36,236.35,0.464792]
[1731874399446,124.4261499,236.36,236.35,0.464792]
[1731874399829,128.6569499,236.36,236.35,0.464792]
[1731874400758,158.6569499,236.36,236.35,0.464792]
[1731874403247,158.6569499,236.36,236.15,4.2344]
[1731874403248,0.21916462,236.29,236.18,10.30461128]
[1731874403445,10.30461128,236.23,236.16,10.30461128]
[1731874403653,23.902374,236.28,236.2,10.30461128]
[1731874403844,10.43010128,236.27,236.2,10.30461128]
[1731874404040,10.55559128,236.25,236.18,10.30461128]
[1731874404638,0.12549,236.23,236.16,10.30461128]
[1731874404837,0.25098,236.23,236.16,10.30461128]
[1731874405237,0.25098,236.19,236.11,0.464792]
[1731874405547,4.2337,236.2,236.13,10.30461128]
[1731874405934,4.2337,236.2,236.15,10.30461128]
[1731874406841,16.6601,236.25,236.15,10.30461128]
[1731874407041,76.1409,236.37,236.2,10.30461128]
[1731874407042,162.3,236.32,236.2,10.30461128]
[1731874407360,0.09367462,236.24,236.12,14.8228]
[1731874407549,0.09367462,236.22,236.15,10.30461128]
[1731874408059,0.21916462,236.22,236.15,10.30461128]
[1731874408561,4.2337,236.2,236.15,10.30461128]
[1731874409757,10.5807,236.28,236.15,10.30461128]
[1731874409758,10.30461128,236.26,236.19,10.30461128]
[1731874410065,4.2324,236.27,236.19,10.30461128]
[1731874411467,4.2328,236.25,236.19,10.30461128]
[1731874412964,4.2328,236.25,236.17,10.30461128]
[1731874413355,4.2325,236.27,236.21,10.30461128]
[1731874413536,4.2325,236.27,236.18,6.0483]
[1731874413537,4.2321,236.29,236.24,10.30461128]
[1731874414151,14.53671128,236.29,236.22,10.30461128]
[1731874414348,14.53671128,236.29,236.2,10.30461128]
[1731874414653,10.30461128,236.27,236.2,10.30461128]
[1731874415442,4.2326,236.26,236.2,10.30461128]
[1731874415642,10.30461128,236.25,236.18,16.35291128]
[1731874416044,10.30461128,236.25,236.18,6.0483]
[1731874416570,10.30461128,236.25,236.18,16.35291128]
[1731874417473,4.2329,236.24,236.18,16.35291128]
[1731874419872,4.2315,236.32,236.22,10.30461128]
[1731874420168,4.2315,236.32,236.26,10.30461128]
[1731874420367,14.53611128,236.32,236.24,10.30461128]
[1731874420948,15.1817,236.42,236.3,10.30461128]
[1731874421150,14.53471128,236.4,236.32,10.30461128]
[1731874421558,0.09367462,236.36,236.3,10.30461128]
[1731874421764,10.30461128,236.33,236.25,10.30461128]
[1731874422071,10.30461128,236.31,236.22,10.30461128]
[1731874422968,4.2312,236.34,236.28,10.30461128]
[1731874423169,10.30461128,236.37,236.3,10.30461128]
[1731874423353,4.2309,236.36,236.3,10.30461128]
[1731874423552,4.2309,236.36,236.22,0.2]
[1731874423553,10.3982859,236.35,236.26,10.30461128]
[1731874423767,10.30461128,236.33,236.26,10.30461128]
[1731874424161,10.30461128,236.33,236.19,14.8184]
[1731874424162,10.30461128,236.33,236.24,10.30461128]
[1731874425080,4.2315,236.32,236.24,10.30461128]
[1731874425959,24.12153862,236.31,236.24,10.30461128]
[1731874426281,34.4261499,236.31,236.22,10.30461128]
[1731874426860,4.2319,236.3,236.22,10.30461128]
[1731874427060,4.2319,236.3,236.24,10.30461128]
[1731874427276,4.2319,236.3,236.26,10.30461128]
[1731874427577,15.1817,236.42,236.26,10.30461128]
[1731874427782,4.2299,236.41,236.32,10.30461128]
[1731874428079,14.53451128,236.41,236.32,10.30461128]
[1731874428288,14.53451128,236.41,236.28,22.6918]
[1731874428289,0.09367462,236.38,236.3,10.30461128]
[1731874428962,0.12549,236.37,236.3,10.30461128]
[1731874429163,0.12549,236.36,236.3,10.30461128]
[1731874430578,4.2306,236.37,236.3,10.30461128]
[1731874430762,4.2306,236.37,236.32,10.30461128]
[1731874431172,0.25098,236.41,236.34,10.30461128]
[1731874432082,4.2297,236.42,236.36,10.30461128]
[1731874432687,4.2294,236.44,236.36,10.30461128]
[1731874433379,0.25098,236.43,236.36,10.30461128]
[1731874434159,0.25098,236.44,236.36,10.30461128]
[1731874434374,4.2297,236.42,236.36,10.30461128]
[1731874434891,10.30461128,236.37,236.28,22.6918]
[1731874435066,23.87055862,236.41,236.22,6.06714165]
[1731874435067,0.12549,236.33,236.25,10.30461128]
[1731874435389,0.25098,236.33,236.25,10.30461128]
[1731874436167,0.09367462,236.29,236.15,10.5863]
[1731874436373,0.12549,236.26,236.18,10.30461128]
[1731874436984,0.25098,236.26,236.18,10.30461128]
[1731874437174,4.2328,236.25,236.18,10.30461128]
[1731874437570,4.2324,236.28,236.22,10.30461128]
[1731874437763,10.30461128,236.32,236.22,10.30461128]
[1731874437987,4.232,236.3,236.22,10.30461128]
[1731874438688,25.64941128,236.34,236.24,10.30461128]
[1731874438986,4.2316,236.32,236.26,10.30461128]
[1731874440197,4.2316,236.32,236.24,10.30461128]
[1731874440667,14.53621128,236.32,236.24,10.30461128]
[1731874440868,14.53621128,236.32,236.22,14.53781128]
[1731874441370,15.4448,236.39,236.22,14.53781128]
[1731874441371,14.53581128,236.34,236.26,10.30461128]
[1731874441585,10.30461128,236.38,236.28,10.30461128]
[1731874441768,4.2304,236.38,236.31,10.30461128]
[1731874442379,14.53501128,236.38,236.29,10.30461128]
[1731874442772,14.53501128,236.38,236.29,14.53661128]
[1731874443390,10.5742,236.43,236.29,14.53661128]
[1731874443391,10.30461128,236.43,236.34,10.30461128]
[1731874443768,10.30461128,236.39,236.31,15.5977]
[1731874444797,4.2304,236.38,236.31,15.5977]
[1731874447975,10.30461128,236.41,236.32,10.30461128]
[1731874448884,10.28061128,236.41,236.32,10.30461128]
[1731874449677,4.2301,236.4,236.32,14.53601128]
[1731874449883,10.5726,236.46,236.32,14.53601128]
[1731874449884,4.2298,236.42,236.34,10.30461128]
[1731874450593,10.30461128,236.41,236.32,20.88341128]
[1731874451499,10.30461128,236.39,236.32,10.5788]
[1731874451690,10.30461128,236.39,236.32,14.8103]
[1731874453098,14.53491128,236.39,236.32,14.8103]
[1731874454999,10.30461128,236.43,236.34,10.30461128]
[1731874455375,10.30461128,236.41,236.32,25.11491128]
[1731874455575,10.30461128,236.34,236.31,15.5977]
[1731874455893,10.30461128,236.32,236.3,6.3299]
[1731874456093,10.30461128,236.32,236.25,15.6875]
[1731874456407,10.30461128,236.29,236.23,10.5803]
[1731874459294,10.30461128,236.25,236.2,15.6875]
[1731874459595,10.30461128,236.25,236.17,6.3473]
[1731874460590,10.30461128,236.31,236.22,10.30461128]
[1731874460777,0.09367462,236.32,236.24,10.30461128]
[1731874461109,0.34465462,236.32,236.24,10.30461128]
[1731874461394,4.2317,236.31,236.24,10.30461128]
[1731874462104,14.53631128,236.31,236.24,10.30461128]
[1731874462271,4.2306,236.37,236.28,10.30461128]
[1731874462478,14.53521128,236.37,236.28,10.30461128]
[1731874464277,14.53521128,236.37,236.28,14.53671128]
[1731874465186,16.4712,236.4,236.26,10.30461128]
[1731874465187,10.30461128,236.35,236.26,10.30461128]
[1731874465387,4.2311,236.34,236.26,10.30461128]
[1731874466204,24.2311,236.34,236.26,10.30461128]
[1731874466384,10.55559128,236.33,236.24,10.30461128]
[1731874466589,10.55559128,236.33,236.22,4.2333]
[1731874466590,10.30461128,236.31,236.22,14.53791128]
[1731874466906,10.30461128,236.31,236.22,10.30461128]
[1731874467785,4.2319,236.3,236.22,10.30461128]
[1731874467980,10.6492659,236.29,236.22,10.30461128]
[1731874468186,10.30461128,236.27,236.2,10.30461128]
[1731874468604,20.0,236.26,236.2,10.30461128]
[1731874468991,10.30461128,236.29,236.2,10.30461128]
[1731874469192,24.2319,236.3,236.24,10.30461128]
[1731874469391,10.30461128,236.33,236.26,10.30461128]
[1731874469601,24.2316,236.32,236.26,10.30461128]
[1731874469922,10.30461128,236.37,236.28,10.30461128]
[1731874470286,10.30461128,236.35,236.28,10.30461128]
[1731874470897,10.30461128,236.35,236.26,20.88611128]
[1731874471280,20.0,236.34,236.26,20.88611128]
[1731874471501,10.30461128,236.33,236.26,20.88611128]
[1731874471704,24.2316,236.32,236.26,20.88611128]
[1731874476991,24.2316,236.32,236.24,10.30461128]
[1731874477191,24.2316,236.32,236.17,6.4473]
[1731874477192,20.0,236.28,236.2,10.30461128]
[1731874477705,0.12549,236.27,236.2,10.30461128]
[1731874477891,20.0,236.28,236.2,10.30461128]
[1731874479726,4.2324,236.27,236.2,10.30461128]
[1731874480011,4.2324,236.27,236.2,14.53821128]
[1731874481110,4.2324,236.27,236.2,10.30461128]
[1731874481611,20.0,236.26,236.18,20.88971128]
[1731874481918,20.0,236.26,236.18,25.12371128]
[1731874483404,4.2328,236.25,236.18,25.12371128]
[1731874485209,20.0,236.24,236.16,14.53881128]
[1731874486227,4.2331,236.23,236.16,14.53881128]
[1731874489002,4.2331,236.23,236.18,10.30461128]
[1731874489203,4.2328,236.25,236.2,10.30461128]
[1731874489510,4.2325,236.27,236.22,10.30461128]
[1731874494705,4.2325,236.27,236.21,10.30461128]
[1731874495002,20.12549,236.26,236.19,10.30461128]
[1731874496213,20.12549,236.26,236.17,25.12401128]
[1731874496410,10.30461128,236.23,236.15,10.30461128]
[1731874496601,20.0,236.22,236.15,10.30461128]
[1731874496822,4.2335,236.21,236.15,10.30461128]
[1731874497402,20.0,236.22,236.17,10.30461128]
[1731874497703,4.2332,236.23,236.17,10.30461128]
[1731874500118,4.2332,236.23,236.15,20.89101128]
[1731874500321,0.09367462,236.22,236.11,0.464792]
[1731874500502,20.0,236.19,236.11,0.464792]
[1731874500829,20.0,236.19,236.14,10.30461128]
[1731874501128,0.12549,236.22,236.14,10.30461128]
[1731874501624,0.12549,236.22,236.16,10.30461128]
[1731874502427,4.2335,236.21,236.14,10.30461128]
[1731874504027,10.5811,236.27,236.12,4.235]
[1731874504028,4.2322,236.28,236.18,10.30461128]
[1731874504235,10.30461128,236.26,236.12,14.8229]
[1731874504420,10.30461128,236.24,236.15,10.30461128]
[1731874504614,0.12549,236.25,236.17,10.30461128]
[1731874504818,0.12549,236.25,236.12,14.8229]
[1731874505024,0.12549,236.25,236.17,10.30461128]
[1731874505332,14.53681128,236.28,236.19,10.30461128]
[1731874506126,4.2322,236.28,236.19,10.30461128]
[1731874506632,0.12549,236.27,236.19,10.30461128]
[1731874506839,16.451,236.29,236.23,10.30461128]
[1731874507042,178.4393,236.35,236.28,20.60922256]
[1731874507210,162.3,236.36,236.34,10.30461128]
[1731874507409,162.3,236.35,236.34,10.30461128]
[1731874507635,166.5308,236.36,236.3,10.30461128]
[1731874507835,10.30461128,236.32,236.25,10.30461128]
[1731874508334,0.25098,236.31,236.25,10.30461128]
[1731874508634,4.2319,236.3,236.25,10.30461128]
[1731874509041,0.25098,236.29,236.23,10.3982859]
[1731874509208,20.25098,236.29,236.23,10.3982859]
[1731874510409,10.3982859,236.26,236.23,0.09367462]
[1731874510626,20.25098,236.25,236.23,0.09367462]
[1731874511136,34.1751699,236.24,236.23,0.09367462]
[1731874511344,54.4261499,236.24,236.23,0.09367462]
[1731874512419,58.6590499,236.24,236.23,0.09367462]
[1731874512726,20.34465462,236.18,236.11,0.464792]
[1731874513027,20.34465462,236.15,236.11,0.464792]
[1731874514039,4.2347,236.14,236.11,0.464792]
[1731874515937,4.2344,236.16,236.11,0.464792]
[1731874517348,10.6492659,236.15,236.11,0.464792]
[1731874517534,20.34465462,236.12,236.11,0.464792]
[1731874518138,24.57975462,236.12,236.11,0.464792]
[1731874519049,0.12549,236.18,236.11,10.76940328]
[1731874519340,4.2343,236.17,236.13,10.30461128]
[1731874519646,4.2343,236.17,236.11,10.76940328]
[1731874519844,14.53851128,236.19,236.12,10.30461128]
[1731874520143,22.0787,236.29,236.17,10.30461128]
[1731874520343,4.2322,236.28,236.22,10.30461128]
[1731874520529,4.2322,236.28,236.19,10.30461128]
[1731874520530,10.30461128,236.26,236.19,10.30461128]
[1731874520730,10.30461128,236.24,236.16,10.30461128]
[1731874521644,14.53761128,236.24,236.16,10.30461128]
[1731874521944,10.30461128,236.26,236.18,10.30461128]
[1731874522352,10.30461128,236.28,236.2,10.30461128]
[1731874523355,4.2314,236.33,236.26,10.30461128]